bitfinex/quotes_ETHUSD_20240928
["timestamp","ask_amount","ask_price","bid_price","bid_amount"]
[1727532360222,4.53395,2673.4,2672.9,4.489433]
[1727532360424,0.04523347,2673.0,2672.9,3.74117]
[1727532360730,4.53395,2673.4,2672.9,3.74117]
[1727532360919,0.04523347,2673.0,2672.7,3.74146]
[1727532361121,0.7934,2673.4,2672.7,4.44844526]
[1727532361122,0.7934,2673.1,2672.7,4.44844526]
[1727532361428,0.04523347,2672.9,2672.7,3.74144]
[1727532361738,0.04521864,2672.8,2672.7,3.74144]
[1727532362403,0.7934,2673.1,2672.7,7.4829]
[1727532362603,0.04521864,2672.8,2672.7,3.74144]
[1727532362816,0.7934,2673.1,2672.7,3.74144]
[1727532363015,0.7934,2673.1,2672.8,3.74132]
[1727532363525,0.7934,2673.4,2672.9,3.74116]
[1727532363734,0.7934,2673.4,2673.1,3.74097]
[1727532364935,0.7934,2673.6,2673.1,0.748213]
[1727532365090,0.7934,2673.6,2673.3,3.74062]
[1727532365295,0.7934,2673.6,2673.4,0.748133]
[1727532365490,0.7934,2673.6,2673.2,3.7408]
[1727532365695,4.53368,2673.6,2673.1,3.74096]
[1727532366637,0.7934,2673.6,2673.2,3.74083]
[1727532367001,0.7934,2673.6,2673.3,3.74062]
[1727532367510,0.7934,2673.6,2673.2,3.74083]
[1727532367511,0.7934,2673.6,2673.4,3.74055]
[1727532367709,0.7934,2673.6,2673.4,7.48103]
[1727532367899,0.04539658,2673.5,2673.4,7.48103]
[1727532368095,0.04539658,2673.5,2673.4,8.229133]
[1727532368333,0.7934,2673.8,2673.4,5.319783]
[1727532368538,0.7934,2673.8,2673.4,5.319773]
[1727532368734,0.7934,2673.8,2673.4,4.57167]
[1727532368946,0.7934,2673.8,2673.5,3.81519143]
[1727532369173,0.04544108,2673.7,2673.5,3.81519143]
[1727532369321,0.7934,2673.8,2673.5,3.81519143]
[1727532369520,0.04544108,2673.6,2673.5,4.57907614]
[1727532369827,0.39163222,2674.1,2673.7,3.74005]
[1727532370035,5.05060672,2674.4,2673.9,3.73984]
[1727532370036,7.6067318,2674.4,2673.9,3.73984]
[1727532370234,3.8674518,2674.4,2674.0,0.373984]
[1727532370449,3.8674518,2674.4,2673.9,3.73984]
[1727532370829,0.1282718,2674.4,2674.0,3.73971]
[1727532371047,0.1282718,2674.4,2673.9,3.73984]
[1727532371244,3.8674218,2674.4,2674.0,0.373984]
[1727532371619,0.1282718,2674.4,2674.0,4.113664]
[1727532372458,3.8675118,2674.4,2674.0,0.373984]
[1727532372633,3.8675118,2674.4,2673.7,3.74004]
[1727532372820,3.8675118,2674.4,2673.8,3.73997]
[1727532373160,3.8675118,2674.4,2673.7,3.74004]
[1727532373345,3.7393,2674.3,2673.7,3.74004]
[1727532373733,3.7393,2674.3,2673.7,7.4801]
[1727532373941,3.7393,2674.3,2673.8,0.83113]
[1727532374555,3.73945,2674.2,2673.8,0.83113]
[1727532374966,3.8675118,2674.4,2673.8,0.83113]
[1727532374967,3.73937,2674.3,2673.8,0.83113]
[1727532375177,3.73937,2674.3,2673.9,0.40466905]
[1727532375459,7.47902,2674.2,2673.9,0.40466905]
[1727532375673,3.73951,2674.2,2673.6,4.57138]
[1727532375855,7.47906,2674.2,2673.7,3.74013]
[1727532376165,3.73993,2673.9,2673.7,0.98896923]
[1727532376370,3.73993,2673.9,2673.4,0.8038]
[1727532376371,3.73983,2674.0,2673.4,0.8038]
[1727532376523,3.73983,2674.0,2673.5,4.49485]
[1727532378277,3.74,2673.8,2673.5,0.75444]
[1727532378562,3.73983,2674.0,2673.4,4.54433]
[1727532378563,3.73989,2673.9,2673.4,4.54433]
[1727532378729,3.73989,2673.9,2673.5,1.12849]
[1727532379671,3.73983,2674.0,2673.5,1.12849]
[1727532379882,3.74,2673.8,2673.3,3.74068]
[1727532380034,3.73983,2674.0,2673.4,3.74046]
[1727532380238,3.73982,2674.0,2673.5,0.748114]
[1727532380445,3.73982,2674.0,2673.3,3.74068]
[1727532380446,3.73982,2674.0,2673.3,3.74061]
[1727532380658,3.73993,2673.9,2673.4,3.74055]
[1727532381364,3.73982,2674.0,2673.4,3.74046]
[1727532381578,3.73982,2674.0,2673.5,3.74039]
[1727532382370,0.8212,2674.1,2673.6,4.5713]
[1727532382531,0.8212,2674.1,2673.7,3.74011]
[1727532382734,0.04486177,2673.9,2673.7,3.74011]
[1727532382933,0.8212,2674.1,2673.7,3.74011]
[1727532383127,0.8212,2674.1,2673.6,1.205139]
[1727532383128,0.8212,2674.1,2673.6,4.945279]
[1727532383369,0.04486177,2674.0,2673.7,3.74011]
[1727532383870,0.04486177,2674.0,2673.7,4.6086649]
[1727532384041,0.04486177,2674.0,2673.8,3.73999]
[1727532384796,0.9456718,2674.4,2673.9,0.8311]
[1727532384797,0.1282718,2674.4,2673.9,0.8311]
[1727532384997,0.1282718,2674.4,2674.0,4.196799]
[1727532385362,0.1282718,2674.4,2674.0,0.457109]
[1727532385559,0.1282718,2674.4,2674.3,3.73929]
[1727532385988,0.1282718,2674.4,2674.2,4.5704]
[1727532386159,0.1282718,2674.4,2674.3,4.19633]
[1727532387160,0.1282718,2674.4,2674.3,0.45704]
[1727532387687,0.1282718,2674.4,2674.1,3.7395]
[1727532388200,0.1282718,2674.4,2674.2,3.73933]
[1727532388574,0.1282718,2674.4,2674.3,3.73929]
[1727532388767,0.1282718,2674.4,2674.3,4.57039]
[1727532388969,0.1282718,2674.4,2674.3,5.401371]
[1727532391762,0.1282718,2674.4,2674.3,0.830981]
[1727532391968,0.1282718,2674.4,2674.3,4.57039]
[1727532392769,0.16920161,2674.4,2674.3,4.57039]
[1727532393430,0.16920161,2674.4,2674.2,3.73935]
[1727532394657,0.16920161,2674.4,2674.0,4.961019]
[1727532394835,0.16920161,2674.4,2674.2,3.73943]
[1727532395033,0.16920161,2674.4,2674.3,4.113233]
[1727532395272,0.16920161,2674.4,2674.3,4.18800948]
[1727532395637,0.16920161,2674.4,2674.3,4.113233]
[1727532395846,0.1282718,2674.4,2674.3,4.113233]
[1727532396046,0.1282718,2674.4,2674.3,11.28671774]
[1727532401952,0.7785,2675.3,2674.9,3.73834]
[1727532402255,0.03979497,2675.2,2675.0,3.73829]
[1727532402597,5.31156392,2676.0,2675.3,0.7609]
[1727532402896,3.73699,2676.0,2675.4,3.73774]
[1727532403116,3.73716,2675.9,2675.5,0.449864]
[1727532403276,3.73699,2676.0,2675.5,0.449864]
[1727532403912,7.474,2676.0,2675.5,4.187384]
[1727532404059,2.7785,2676.1,2675.5,4.187384]
[1727532404060,0.7785,2675.8,2675.5,0.449864]
[1727532404264,0.61260803,2675.8,2675.3,7.47564]
[1727532404786,4.34982803,2675.8,2675.3,3.7378]
[1727532404997,0.61260803,2675.8,2675.3,3.7378]
[1727532405208,3.40918474,2675.8,2674.9,3.73841]
[1727532405378,3.73755,2675.6,2675.1,3.73811]
[1727532406071,3.73763,2675.5,2674.9,3.73835]
[1727532406401,3.73755,2675.6,2674.9,3.73835]
[1727532406402,3.73755,2675.6,2675.0,0.823774]
[1727532406566,7.4751,2675.6,2675.1,3.73816]
[1727532406767,7.4751,2675.6,2675.0,0.823774]
[1727532406768,3.73755,2675.6,2675.0,4.562004]
[1727532406969,3.7377,2675.5,2675.0,0.823774]
[1727532407168,3.73779,2675.4,2674.8,3.73852]
[1727532407604,7.47564,2675.4,2674.8,3.73852]
[1727532408514,7.47566,2675.4,2674.8,3.73852]
[1727532408671,3.73779,2675.4,2674.8,3.73852]
[1727532409010,0.7785,2675.5,2674.6,1.62598095]
[1727532409011,4.51684,2675.0,2674.6,3.0]
[1727532409211,4.51684,2675.0,2674.5,3.73893]
[1727532409421,3.73847,2674.9,2674.5,0.89807548]
[1727532410211,4.51684,2675.0,2674.5,0.89807548]
[1727532410375,3.73846,2674.9,2674.5,0.89807548]
[1727532410603,0.7785,2675.0,2674.4,3.0]
[1727532410799,4.51686,2675.0,2674.5,3.73893]
[1727532411130,4.51686,2675.0,2674.5,4.486744]
[1727532411335,4.51686,2675.0,2674.5,3.73893]
[1727532411497,4.51686,2675.0,2674.5,7.47786]
[1727532411696,4.51686,2675.0,2674.5,3.73893]
[1727532412601,0.0400988,2674.9,2674.6,3.73887]
[1727532412801,0.0400988,2674.9,2674.5,3.73893]
[1727532413001,0.0400988,2674.9,2674.5,4.486745]
[1727532414103,0.0400988,2674.9,2674.5,8.225665]
[1727532414299,0.0400988,2674.9,2674.5,3.73892]
[1727532415449,0.0400988,2674.9,2674.5,7.47785]
[1727532415631,0.0400988,2674.9,2674.6,3.73884]
[1727532416803,0.0400988,2674.9,2674.7,3.73861]
[1727532417005,0.0400988,2674.9,2674.8,4.11992839]
[1727532417247,0.816,2675.2,2674.8,4.11992839]
[1727532417408,0.816,2675.2,2674.9,3.73838]
[1727532417764,0.816,2675.2,2674.8,4.11992839]
[1727532417765,0.816,2675.2,2674.8,7.85851839]
[1727532417901,0.816,2675.2,2674.8,4.11992839]
[1727532418356,0.39139425,2675.1,2674.8,4.11992839]
[1727532419856,0.39139425,2675.1,2674.6,7.4776]
[1727532420063,4.12965425,2675.1,2674.6,7.47759]
[1727532420267,4.12965425,2675.1,2674.6,3.73879]
[1727532420433,0.39139425,2675.1,2674.4,4.54507]
[1727532420620,3.73832,2675.0,2674.5,3.73901]
[1727532421559,4.12959425,2675.1,2674.6,3.7388]
[1727532421806,4.12958425,2675.1,2674.6,4.6126317]
[1727532422759,0.39139425,2675.1,2674.6,4.6126317]
[1727532423103,0.7543,2674.9,2674.4,0.454507]
[1727532423378,4.49284,2674.9,2674.3,3.73919]
[1727532424163,4.49284,2674.9,2674.4,3.73908]
[1727532424547,3.73865,2674.8,2674.3,3.73919]
[1727532424749,3.73865,2674.8,2674.3,4.489389]
[1727532425349,3.73865,2674.8,2674.3,8.228589]
[1727532425548,4.49284,2674.9,2674.3,8.228589]
[1727532426070,4.49284,2674.9,2674.4,3.73906]
[1727532427356,4.49284,2674.9,2674.4,7.9270659]
[1727532427556,4.49284,2674.9,2674.4,4.1879859]
[1727532427785,0.03863326,2674.8,2674.4,4.1879859]
[1727532427989,0.03863326,2674.8,2674.4,7.9270659]
[1727532428447,0.03863326,2674.8,2674.4,4.1879859]
[1727532428647,0.03863326,2674.8,2674.5,0.49381849]
[1727532429477,0.03863326,2674.8,2674.5,4.23279849]
[1727532429671,0.03863326,2674.8,2674.5,0.49381849]
[1727532430346,0.03863326,2674.8,2674.5,4.23282849]
[1727532431684,0.03863326,2674.8,2674.6,3.73875]
[1727532431888,0.03863326,2674.8,2674.6,7.90079685]
[1727532432061,0.03863326,2674.8,2674.7,3.73873]
[1727532432595,0.74293326,2674.9,2674.7,3.73873]
[1727532432755,0.03713056,2674.8,2674.7,3.73873]
[1727532433680,0.42855232,2674.8,2674.7,3.73873]
[1727532436362,0.42855232,2674.8,2674.6,0.42325685]
[1727532436565,0.42855232,2674.8,2674.6,3.73885]
[1727532437307,0.42855232,2674.8,2674.4,3.73905]
[1727532437479,4.16715232,2674.8,2674.4,3.73905]
[1727532438785,0.42855232,2674.8,2674.4,3.73905]
[1727532438965,0.42855232,2674.8,2674.5,3.739]
[1727532439166,0.42855232,2674.8,2674.5,4.565515]
[1727532439768,0.42855232,2674.8,2674.6,3.73881]
[1727532440871,0.42855232,2674.8,2674.7,3.73873]
[1727532442321,0.42855232,2674.8,2674.7,4.56953]
[1727532442495,0.42855232,2674.8,2674.7,7.56953]
[1727532442698,0.39142176,2674.8,2674.7,9.12393413]
[1727532443321,1.18315492,2675.6,2675.4,3.73774]
[1727532443471,1.18315492,2675.8,2675.6,3.73747]
[1727532443673,0.03607984,2675.7,2675.6,3.73747]
[1727532443875,1.98655492,2675.9,2675.6,3.73747]
[1727532444094,0.03607984,2675.8,2675.6,3.73747]
[1727532445178,0.03607984,2675.8,2675.2,3.73793]
[1727532445385,0.8034,2675.6,2675.2,3.73793]
[1727532445916,0.03607984,2675.5,2675.3,3.73781]
[1727532446713,0.03607984,2675.5,2675.2,3.73793]
[1727532446915,0.03607984,2675.5,2675.4,3.73775]
[1727532447422,0.8034,2675.8,2675.4,3.73775]
[1727532447709,0.8034,2675.8,2675.5,3.7376]
[1727532447903,0.8034,2675.6,2675.2,3.73791]
[1727532448114,0.8034,2675.6,2675.1,3.7381]
[1727532448319,0.03642084,2675.5,2675.3,3.73789]
[1727532448655,1.18315492,2675.9,2675.4,4.55145]
[1727532448954,0.03642084,2675.8,2675.6,3.73737]
[1727532449107,0.03642084,2675.8,2675.7,3.73733]
[1727532449615,1.18315492,2676.0,2675.7,3.73733]
[1727532449817,0.03703615,2675.9,2675.7,3.73733]
[1727532450041,0.03703615,2675.9,2675.4,0.8137]
[1727532450210,1.22019107,2675.9,2675.6,3.7374]
[1727532450411,0.03703615,2675.9,2675.6,3.7374]
[1727532452144,0.03703615,2675.9,2675.4,4.55137]
[1727532452145,0.03703615,2675.9,2675.5,3.73758]
[1727532452864,3.73734,2675.7,2675.2,3.73794]
[1727532453042,0.84045097,2675.6,2675.0,3.7383]
[1727532453213,3.73768,2675.5,2675.0,3.7383]
[1727532453413,0.03697686,2675.4,2675.0,3.7383]
[1727532454018,0.03697686,2675.4,2674.8,7.55219]
[1727532454221,4.5413,2675.3,2674.9,3.73845]
[1727532454514,0.8034,2675.3,2675.0,3.73831]
[1727532454813,0.03697686,2675.2,2675.0,7.47649]
[1727532455166,4.54103,2675.5,2675.0,3.73818]
[1727532455661,0.03689535,2675.4,2675.0,3.73818]
[1727532456018,0.03689535,2675.4,2675.0,7.47641]
[1727532456359,0.03689535,2675.4,2675.0,3.73818]
[1727532458173,0.03689535,2675.4,2674.8,3.7385]
[1727532458325,0.03689535,2675.4,2674.8,4.19368]
[1727532458525,0.03689535,2675.4,2674.9,3.73845]
[1727532459764,3.77467535,2675.4,2674.9,3.73845]
[1727532459963,3.77467535,2675.4,2674.8,4.19381]
[1727532460631,3.73793,2675.3,2674.8,4.19381]
[1727532460831,0.03673968,2675.2,2674.8,4.19381]
[1727532461162,3.73793,2675.3,2674.8,4.19381]
[1727532461364,0.80043968,2675.1,2674.7,3.0]
[1727532461522,0.7637,2675.1,2674.7,3.0]
[1727532461964,0.03672485,2675.0,2674.7,3.0]
[1727532462267,0.03672485,2675.0,2674.7,6.73871]
[1727532462570,0.03672485,2675.0,2674.7,3.0]
[1727532462731,3.77505485,2675.0,2674.5,3.0]
[1727532462924,3.77506485,2675.0,2674.5,3.373908]
[1727532463149,3.77506485,2675.0,2674.7,3.0]
[1727532463150,0.03672485,2675.0,2674.7,3.0]
[1727532465623,0.03672485,2675.0,2674.2,0.7868]
[1727532465828,3.73871,2674.8,2674.3,3.73927]
[1727532466053,0.03654692,2674.7,2674.2,4.52615]
[1727532466270,0.03654692,2674.7,2674.2,8.718115]
[1727532466445,0.03654692,2674.7,2674.3,3.73926]
[1727532466639,3.73871,2674.8,2674.3,3.73926]
[1727532466930,0.03630229,2674.6,2674.2,4.978765]
[1727532467078,3.73871,2674.8,2674.3,3.73928]
[1727532467374,0.03619106,2674.7,2674.3,3.73928]
[1727532467876,0.03619106,2674.6,2674.2,1.239415]
[1727532468087,3.7386,2674.8,2674.3,3.73921]
[1727532468241,0.03619106,2674.7,2674.3,4.2370725]
[1727532468439,3.7386,2674.8,2674.3,4.2370725]
[1727532468640,0.03619106,2674.7,2674.3,4.2370725]
[1727532468840,3.7386,2674.8,2674.3,4.2370725]
[1727532469071,0.03619106,2674.7,2674.3,4.2370725]
[1727532469281,3.7386,2674.8,2674.3,4.2370725]
[1727532469481,0.03619106,2674.7,2674.3,4.2370725]
[1727532469666,3.7386,2674.8,2674.3,4.2370725]
[1727532469844,0.03619106,2674.7,2674.3,4.2370725]
[1727532470045,3.7386,2674.8,2674.3,4.2370725]
[1727532470245,0.03619106,2674.7,2674.3,4.2370725]
[1727532470445,3.7386,2674.8,2674.3,4.2370725]
[1727532470650,0.03619106,2674.7,2674.3,4.2370725]
[1727532470848,1.94685492,2674.9,2674.3,0.4978625]
[1727532471053,0.03619106,2674.8,2674.4,3.73912]
[1727532472190,0.03619106,2674.8,2674.4,3.73906]
[1727532473673,0.03619106,2674.8,2674.5,3.73892]
[1727532474401,0.03619106,2674.8,2674.6,3.73887]
[1727532474576,0.03619106,2674.8,2674.7,3.8135003]
[1727532474911,9.01719897,2675.3,2674.6,4.50097]
[1727532474912,8.1982,2675.3,2674.6,0.7621]
[1727532475188,0.03462659,2675.2,2674.9,3.73837]
[1727532475487,0.7582,2675.3,2674.9,3.73837]
[1727532475700,0.03462659,2675.2,2674.9,7.47674]
[1727532475851,0.7582,2675.3,2674.9,3.73837]
[1727532476048,0.03462659,2675.2,2674.9,3.73837]
[1727532476296,0.7582,2675.3,2674.9,3.73837]
[1727532476597,0.03462659,2675.2,2674.9,3.73837]
[1727532476952,0.7582,2675.3,2674.9,3.73837]
[1727532477154,0.03496792,2675.1,2674.9,3.73837]
[1727532477482,0.03496792,2675.0,2674.9,3.73837]
[1727532477657,0.7582,2675.3,2674.9,3.73837]
[1727532477852,0.03496792,2675.2,2674.9,3.73837]
[1727532478088,0.7582,2675.3,2674.9,3.73837]
[1727532478290,0.03496792,2675.2,2674.9,3.73837]
[1727532478494,0.7582,2675.3,2674.9,3.73837]
[1727532478693,0.03496792,2675.2,2674.9,3.73837]
[1727532478996,0.7582,2675.3,2674.9,3.73837]
[1727532479198,0.03496792,2675.1,2674.9,3.73837]
[1727532479404,0.7582,2675.3,2674.9,3.73837]
[1727532479584,0.03496792,2675.0,2674.9,3.73837]
[1727532480116,6.0880858,2675.9,2674.9,3.73837]
[1727532480117,2.3509958,2676.0,2675.5,0.7912]
[1727532480411,1.1752855,2677.2,2677.0,3.0]
[1727532480556,8.05442617,2678.2,2677.3,3.73509]
[1727532480557,4.20876422,2677.9,2677.3,3.73509]
[1727532480882,4.20876422,2677.9,2677.0,3.0]
[1727532481095,0.799,2677.9,2677.6,3.73462]
[1727532481397,0.005,2678.3,2677.3,3.0]
[1727532481612,0.005,2678.3,2677.4,3.28426075]
[1727532481960,0.005,2678.3,2677.5,3.0]
[1727532482104,0.005,2678.3,2677.6,3.73463]
[1727532482105,3.41476422,2678.3,2677.6,3.73463]
[1727532482313,0.005,2678.3,2677.6,3.73463]
[1727532482516,0.54647642,2678.3,2677.7,3.73453]
[1727532482721,0.005,2678.3,2677.7,3.73453]
[1727532483070,0.7674,2678.2,2677.4,3.73494]
[1727532483270,0.7674,2678.2,2677.6,3.73468]
[1727532483525,0.41821642,2678.1,2677.6,3.73468]
[1727532484029,0.7674,2678.2,2677.8,3.73437]
[1727532484480,0.7674,2678.2,2677.6,3.73468]
[1727532484685,2.7674,2678.2,2677.4,3.73492]
[1727532484888,0.61821642,2678.1,2677.4,3.73492]
[1727532485086,4.02798064,2678.1,2677.4,3.73492]
[1727532485290,5.40976422,2677.9,2677.2,3.7352]
[1727532485605,5.40976422,2677.9,2676.9,0.7626]
[1727532485843,0.54097642,2677.8,2676.9,4.17236422]
[1727532486001,2.0,2677.9,2677.4,3.73486]
[1727532486198,0.61821642,2678.1,2677.7,3.73454]
[1727532486502,0.7674,2678.2,2677.7,3.73454]
[1727532486503,0.7674,2678.2,2677.9,3.73426]
[1727532486700,0.005,2678.3,2678.1,3.73399]
[1727532486928,0.005,2678.3,2677.9,3.73414]
[1727532487119,0.005,2678.3,2677.7,3.73451]
[1727532487424,0.005,2678.3,2677.9,3.73415]
[1727532487624,0.005,2678.3,2677.8,3.73437]
[1727532487939,0.005,2678.3,2677.7,3.7345]
[1727532488094,0.455584,2678.3,2677.7,3.7345]
[1727532488601,0.455584,2678.3,2677.9,3.73423]
[1727532488805,0.005,2678.3,2678.0,3.73408]
[1727532489125,0.005,2678.3,2677.7,3.73451]
[1727532489509,0.005,2678.3,2677.7,7.46896]
[1727532489839,0.455584,2678.3,2677.8,3.7344]
[1727532491555,0.455584,2678.3,2677.7,3.73445]
[1727532491838,0.455584,2678.3,2677.8,3.73436]
[1727532494318,0.455584,2678.3,2677.6,3.73462]
[1727532494620,0.4189194,2678.2,2677.7,3.73451]
[1727532495054,0.4189194,2678.2,2677.8,3.73436]
[1727532496345,0.4189194,2678.2,2677.8,3.73432]
[1727532497934,0.4189194,2678.2,2677.8,3.73431]
[1727532498403,4.1527794,2678.2,2677.3,3.7626]
[1727532498606,3.73427,2677.9,2677.3,4.49768]
[1727532498808,0.7502,2678.0,2677.5,3.73482]
[1727532499109,4.90036642,2678.0,2677.5,3.73482]
[1727532499646,1.16619642,2678.0,2677.6,3.73467]
[1727532499842,4.48434,2678.0,2677.4,3.73484]
[1727532500142,0.7502,2678.0,2677.5,3.73478]
[1727532500509,3.73399,2678.1,2677.5,7.4695]
[1727532500936,3.73399,2678.1,2677.5,3.73472]
[1727532501106,3.73399,2678.1,2677.5,7.46944]
[1727532501720,3.73399,2678.1,2677.5,3.73472]
[1727532502059,0.373399,2678.0,2677.5,3.73472]
[1727532503053,7.14854422,2678.3,2677.3,0.7626]
[1727532503207,3.73878,2678.3,2677.8,3.73436]
[1727532503408,3.73878,2678.3,2677.7,3.73444]
[1727532504511,3.73878,2678.3,2677.7,7.46889]
[1727532504667,4.392028,2678.3,2677.7,3.73444]
[1727532505168,3.73387,2678.2,2677.7,3.73444]
[1727532505321,3.73387,2678.2,2677.5,3.73472]
[1727532505521,4.1732718,2678.1,2677.5,7.46946]
[1727532505833,0.4392118,2678.1,2677.5,3.73472]
[1727532506035,4.1732818,2678.1,2677.6,3.73468]
[1727532506220,0.4392118,2678.1,2677.5,3.73472]
[1727532506421,0.4392118,2678.1,2677.3,7.49761]
[1727532506422,3.73442,2677.8,2677.3,3.73501]
[1727532506621,3.7343,2677.9,2677.3,3.73501]
[1727532507141,4.94520818,2678.0,2677.3,3.73501]
[1727532507345,0.49452082,2677.9,2677.4,3.73492]
[1727532507721,0.49452082,2677.9,2677.5,3.73481]
[1727532508765,4.22879082,2677.9,2677.4,3.73493]
[1727532508919,0.49452082,2677.9,2677.4,3.73493]
[1727532509123,4.22879082,2677.9,2677.4,3.73493]
[1727532509828,4.22879082,2677.9,2677.4,3.73488]
[1727532510174,4.22879082,2677.9,2677.4,7.46976]
[1727532510325,4.22879082,2677.9,2677.4,3.73488]
[1727532512136,4.22879082,2677.9,2677.4,7.46977]
[1727532512560,4.22879082,2677.9,2677.4,3.73488]
[1727532512747,4.22879082,2677.9,2677.4,3.73487]
[1727532513281,4.22884082,2677.9,2677.4,3.73487]
[1727532513774,0.49452082,2677.9,2677.4,3.73487]
[1727532513935,3.73492,2677.5,2676.8,3.73578]
[1727532514140,7.14468422,2677.5,2676.8,3.73578]
[1727532514553,3.73506,2677.4,2676.8,3.73573]
[1727532514740,4.44952842,2677.4,2676.8,7.47146]
[1727532514965,4.44952842,2677.4,2676.8,3.73573]
[1727532515286,0.39111598,2677.3,2676.9,3.73564]
[1727532516859,0.39111598,2677.3,2676.8,3.73573]
[1727532517056,0.39111598,2677.3,2676.8,7.47145]
[1727532517377,0.39111598,2677.3,2676.8,3.73571]
[1727532517764,0.39111598,2677.3,2676.8,3.73569]
[1727532519143,0.39111598,2677.3,2676.9,3.73562]
[1727532519343,0.39111598,2677.3,2676.8,3.73569]
[1727532519344,4.12622598,2677.3,2676.8,3.73569]
[1727532520182,0.39111598,2677.3,2676.8,3.73569]
[1727532520399,7.79560235,2677.4,2676.8,3.73569]
[1727532520887,8.18672202,2677.4,2676.8,3.73569]
[1727532521071,8.18669202,2677.4,2676.8,7.47142]
[1727532521383,3.73513,2677.3,2676.8,3.73569]
[1727532521751,1.10558809,2677.4,2676.8,7.47141]
[1727532521955,4.84055809,2677.4,2676.9,3.73562]
[1727532523409,4.84055809,2677.4,2676.9,7.47119]
[1727532523731,4.12608967,2677.4,2676.9,3.73557]
[1727532524571,4.12608967,2677.4,2677.0,2.5180701]
[1727532524787,4.12608967,2677.4,2677.1,1.00722804]
[1727532524987,4.12608967,2677.4,2676.9,4.51138249]
[1727532525209,0.39111967,2677.4,2677.0,3.29364084]
[1727532525370,0.39111967,2677.4,2677.1,2.51781835]
[1727532525575,0.39111967,2677.4,2677.2,3.29364084]
[1727532525829,0.39111967,2677.4,2677.3,2.51781835]
[1727532526491,0.39111967,2677.4,2677.3,1.00713115]
[1727532526692,0.39111967,2677.4,2677.1,0.77582249]
[1727532526872,0.39111967,2677.4,2677.2,2.52318822]
[1727532527069,0.39111967,2677.4,2677.3,1.0092782]
[1727532527273,0.39111967,2677.4,2677.3,6.25811226]
[1727532527604,0.39111967,2677.4,2677.3,7.73720456]
[1727532527819,0.39111967,2677.4,2677.3,4.00210456]
[1727532528118,0.39111967,2677.4,2677.3,4.00204715]
[1727532529091,0.39111967,2677.4,2677.3,3.22640574]
[1727532529290,0.39111967,2677.4,2677.3,2.52301226]
[1727532530019,0.39111967,2677.4,2677.3,6.25811226]
[1727532530505,0.39111967,2677.4,2677.3,4.7443782]
[1727532531018,0.39111967,2677.4,2677.3,1.0092782]
[1727532531504,0.39111967,2677.4,2677.2,7.47032]
[1727532531708,0.39111967,2677.4,2677.2,8.29491514]
[1727532531881,0.39111967,2677.4,2677.2,0.82459514]
[1727532532065,0.39111967,2677.4,2677.1,4.51102141]
[1727532532374,0.39111967,2677.4,2677.2,6.2574605]
[1727532532807,0.39111967,2677.4,2677.2,3.73524]
[1727532533683,0.39111967,2677.4,2677.0,3.73544]
[1727532533865,0.39111967,2677.4,2677.1,3.73529]
[1727532534070,0.39111967,2677.4,2677.2,3.73522]
[1727532535079,4.51378,2677.7,2677.2,3.73522]
[1727532535278,3.73469,2677.6,2677.2,3.73522]
[1727532536614,4.51365,2677.7,2677.2,3.73521]
[1727532537514,3.73471,2677.6,2677.2,3.73521]
[1727532538118,4.51365,2677.7,2677.2,3.73521]
[1727532539809,7.46951,2677.6,2677.1,3.73537]
[1727532540042,3.73485,2677.5,2677.1,3.73537]
[1727532540174,3.7347,2677.6,2677.1,3.73537]
[1727532540911,3.73493,2677.5,2676.9,8.22444]
[1727532541071,3.7347,2677.6,2676.9,3.73558]
[1727532541269,3.7347,2677.6,2676.8,3.73578]
[1727532541270,0.8186,2677.3,2676.8,3.73578]
[1727532541823,0.8186,2677.3,2676.8,3.73571]
[1727532542167,0.8186,2677.3,2676.8,3.73568]
[1727532542814,0.8186,2677.3,2676.8,4.53019436]
[1727532543216,4.55373,2677.3,2676.8,4.53019436]
[1727532543383,4.55373,2677.3,2676.8,3.73568]
[1727532543720,3.73525,2677.2,2676.7,3.73592]
[1727532543888,3.73538,2677.1,2676.6,3.73597]
[1727532544675,0.8186,2677.0,2676.3,0.77564141]
[1727532544877,3.73602,2676.7,2676.2,4.5024]
[1727532545401,0.8186,2676.6,2676.2,3.7366]
[1727532545718,0.8186,2676.6,2676.1,3.73677]
[1727532545719,4.55481,2676.6,2676.1,3.73677]
[1727532545938,1.20976107,2676.9,2676.2,3.73653]
[1727532546231,1.20976107,2676.9,2676.4,3.73635]
[1727532546417,1.20976107,2676.9,2676.4,4.57686892]
[1727532546622,1.20976107,2676.9,2676.4,8.31312892]
[1727532546821,1.20976107,2676.9,2676.5,3.81090603]
[1727532547018,1.20976107,2676.9,2676.4,4.50206]
[1727532547212,1.20976107,2676.9,2676.5,3.73614]
[1727532547624,1.20976107,2676.9,2676.4,5.70876535]
[1727532548496,1.20976107,2676.9,2676.4,4.50206]
[1727532548709,4.94542107,2676.9,2676.4,4.50206]
[1727532549033,1.20976107,2676.9,2676.4,4.50206]
[1727532549676,0.39116107,2676.9,2676.7,3.73582]
[1727532549808,0.39116107,2676.9,2676.4,0.7658]
[1727532549809,0.39116107,2676.9,2676.8,0.4482897]
[1727532550008,0.39116107,2676.9,2676.8,3.7358]
[1727532550698,0.39116107,2676.9,2676.7,3.7359]
[1727532551644,0.39116107,2676.9,2676.8,3.7358]
[1727532551844,0.39116107,2676.9,2676.8,4.48297]
[1727532552456,4.5536,2677.4,2676.8,5.24877]
[1727532552659,0.39113914,2677.3,2676.8,5.24877]
[1727532552939,0.39113914,2677.3,2676.9,0.07470427]
[1727532553302,0.39113914,2677.3,2676.9,4.7162817]
[1727532555038,4.12633914,2677.3,2676.9,0.90593743]
[1727532555275,0.39113914,2677.3,2676.8,0.7658]
[1727532555450,0.39113914,2677.3,2676.9,3.81026433]
[1727532556484,0.39113914,2677.3,2676.9,3.80926251]
[1727532556769,0.39113914,2677.3,2676.9,0.07370251]
[1727532558461,4.12626914,2677.3,2676.9,0.07370251]
[1727532558759,0.39113914,2677.3,2676.9,0.07370251]